bitfinex/quotes_ETHUSD_20240927
["timestamp","ask_amount","ask_price","bid_price","bid_amount"]
[1727462494049,3.70714,2697.5,2697.1,5.25475064]
[1727462494254,3.70714,2697.5,2697.4,0.08630696]
[1727462494547,7.41439,2697.5,2697.4,0.08630696]
[1727462494748,7.41439,2697.5,2697.1,0.93324706]
[1727462494954,3.70714,2697.5,2697.4,0.08630696]
[1727462495171,3.70714,2697.5,2697.1,0.73324706]
[1727462495455,3.70714,2697.5,2697.4,0.08630696]
[1727462495619,3.70714,2697.5,2697.0,4.07762]
[1727462495822,3.70714,2697.5,2697.4,0.08630696]
[1727462496044,3.70714,2697.5,2697.0,4.07762]
[1727462496242,3.70699,2697.6,2697.4,0.08627928]
[1727462496440,3.70713,2697.5,2697.3,0.3699]
[1727462497221,3.70727,2697.4,2697.0,0.3699]
[1727462497531,3.70727,2697.4,2697.0,1.48360576]
[1727462497864,3.70713,2697.5,2697.0,8.89914576]
[1727462498062,3.70713,2697.5,2697.1,0.07414487]
[1727462498265,3.70736,2697.4,2697.1,1.23245082]
[1727462498430,3.70713,2697.5,2697.1,1.23245082]
[1727462499563,3.70713,2697.5,2697.1,4.94013082]
[1727462500167,3.70729,2697.4,2697.1,1.23245082]
[1727462500558,3.70713,2697.5,2697.1,1.23245082]
[1727462501572,3.70727,2697.4,2697.1,1.23245082]
[1727462501767,3.70727,2697.4,2697.0,4.07764]
[1727462502136,3.70713,2697.5,2697.0,4.07764]
[1727462502387,3.70713,2697.5,2697.0,7.78536]
[1727462502530,3.70713,2697.5,2697.0,7.78537]
[1727462503473,3.70713,2697.5,2697.0,8.89902876]
[1727462503630,3.70713,2697.5,2697.0,8.89900876]
[1727462503832,3.70713,2697.5,2697.1,0.07414491]
[1727462505164,0.3878016,2697.4,2697.1,0.07414491]
[1727462505549,0.3878016,2697.4,2697.1,3.78179491]
[1727462506153,0.3878016,2697.4,2697.1,0.07414491]
[1727462506682,0.3878016,2697.4,2697.0,4.07762]
[1727462506878,0.3878016,2697.4,2697.0,7.78538]
[1727462507383,0.3878016,2697.4,2697.1,0.08618471]
[1727462510461,0.3878016,2697.4,2697.1,0.08618471]
[1727462510983,4.0951416,2697.4,2697.1,0.08618471]
[1727462511958,0.3878016,2697.4,2697.1,0.08618471]
[1727462513424,3.70715,2697.5,2697.1,0.08618471]
[1727462514193,0.38778836,2697.8,2697.1,0.08618471]
[1727462514400,0.38778836,2697.8,2697.7,3.35121759]
[1727462514690,0.38778836,2697.8,2697.7,0.0858148]
[1727462515047,0.38778836,2697.8,2697.5,7.42823759]
[1727462515205,3.70654,2698.0,2697.7,0.08567093]
[1727462515503,4.48659856,2698.0,2697.8,0.08562313]
[1727462515726,5.30229856,2698.0,2697.5,4.07702]
[1727462516045,3.70688,2697.7,2697.5,0.3699]
[1727462516168,3.70686,2697.7,2697.6,0.08571874]
[1727462516361,0.8157,2698.0,2697.6,0.08571874]
[1727462516362,3.70661,2697.9,2697.6,0.08571874]
[1727462516565,4.159021,2697.8,2697.6,0.08571874]
[1727462518830,4.53826,2697.7,2697.6,0.08571874]
[1727462519101,4.53826,2697.7,2697.0,0.3699]
[1727462519308,3.70757,2697.2,2697.1,0.07740073]
[1727462519610,3.70757,2697.2,2696.8,0.3699]
[1727462519780,3.70757,2697.2,2697.1,0.07740073]
[1727462519978,3.70769,2697.1,2696.7,1.54634479]
[1727462520203,3.70769,2697.1,2696.5,5.62474479]
[1727462520204,3.70788,2697.0,2696.5,5.62474479]
[1727462520392,3.708,2696.9,2696.5,0.3699]
[1727462521542,3.708,2696.9,2696.5,4.0784]
[1727462522287,3.708,2696.9,2696.6,0.07793819]
[1727462522489,4.4968,2696.9,2696.6,0.07793819]
[1727462522725,4.4968,2696.9,2696.4,7.06097655]
[1727462522929,4.4968,2696.9,2696.7,0.07789034]
[1727462523129,3.70809,2696.8,2696.3,4.07855]
[1727462524088,4.4968,2696.9,2696.4,7.06095655]
[1727462524525,4.4968,2696.9,2696.4,3.35236655]
[1727462524741,4.4968,2696.9,2696.3,4.07855]
[1727462524742,4.94648,2696.9,2696.3,4.07855]
[1727462524931,3.70824,2696.7,2696.3,0.3699]
[1727462525315,3.70811,2696.8,2696.3,4.07861]
[1727462525531,4.94648,2696.9,2696.4,7.06098655]
[1727462525532,8.65457,2696.9,2696.4,7.06098655]
[1727462525732,3.70824,2696.7,2696.4,3.35236655]
[1727462526439,3.7081,2696.8,2696.4,3.35236655]
[1727462529346,4.94648,2696.9,2696.4,3.35236655]
[1727462529640,3.70811,2696.8,2696.4,7.06099655]
[1727462532101,1.23848,2696.9,2696.4,3.35236655]
[1727462532344,3.70811,2696.8,2696.4,3.35236655]
[1727462534250,3.70811,2696.8,2696.4,7.06099655]
[1727462537008,3.70811,2696.8,2696.4,3.35236655]
[1727462537582,3.70811,2696.8,2696.5,0.07852739]
[1727462538559,3.70825,2696.7,2696.5,0.07852739]
[1727462539277,4.946552,2696.9,2696.5,0.07852739]
[1727462539839,3.70811,2696.8,2696.5,0.07852739]
[1727462540044,3.70832,2696.7,2696.5,0.07852739]
[1727462540343,0.741643,2696.6,2696.5,0.07852739]
[1727462540540,3.70824,2696.7,2696.5,0.07852739]
[1727462540760,3.70824,2696.7,2696.5,1.5476254]
[1727462540955,3.70824,2696.7,2696.6,0.07856243]
[1727462542442,3.70813,2696.8,2696.6,0.07856243]
[1727462542744,3.70813,2696.8,2696.7,1.5476254]
[1727462543144,3.70813,2696.8,2696.7,1.62618973]
[1727462543402,0.7888,2696.9,2696.7,1.62618973]
[1727462543586,3.70751,2697.3,2696.8,4.07793]
[1727462543737,3.70751,2697.3,2696.9,1.5476254]
[1727462543938,4.91412829,2697.4,2696.9,1.5476254]
[1727462543939,3.70756,2697.2,2696.9,1.62602776]
[1727462544635,3.70782,2697.0,2696.9,0.07840236]
[1727462544976,4.52641,2697.0,2696.7,1.5476254]
[1727462545180,4.47808,2697.1,2696.9,0.078325]
[1727462545508,4.47808,2697.1,2696.7,1.5476254]
[1727462545648,4.47808,2697.1,2697.0,0.07827717]
[1727462545849,4.47808,2697.1,2696.7,1.5476254]
[1727462545850,4.60537828,2697.1,2696.8,0.3699]
[1727462546038,3.70768,2697.1,2697.0,0.07827717]
[1727462546241,0.38782829,2697.4,2696.9,1.6259504]
[1727462546545,0.38782829,2697.4,2697.3,1.5476254]
[1727462546762,0.38782829,2697.4,2697.1,1.5476254]
[1727462546763,3.70741,2697.3,2697.1,1.5476254]
[1727462547282,3.70728,2697.4,2697.1,1.5476254]
[1727462548172,3.7072,2697.5,2697.1,1.5476254]
[1727462548478,7.41447,2697.5,2697.1,1.5476254]
[1727462548662,3.7072,2697.5,2697.1,1.5476254]
[1727462548836,3.70728,2697.4,2697.1,1.5476254]
[1727462549037,3.7072,2697.5,2697.1,1.5476254]
[1727462549038,4.51038,2697.6,2697.1,1.5476254]
[1727462549235,4.51038,2697.6,2697.1,5.2552754]
[1727462549975,3.70713,2697.5,2697.1,5.2552754]
[1727462550199,3.70713,2697.5,2697.1,1.5476254]
[1727462551001,0.8033,2697.6,2697.3,1.5476254]
[1727462551262,0.38783688,2697.8,2697.6,0.3699]
[1727462551351,0.38783688,2697.8,2697.7,1.5476254]
[1727462551793,7.4128,2698.1,2697.7,1.5476254]
[1727462551991,3.70639,2698.1,2697.7,1.5476254]
[1727462552387,3.70639,2698.1,2697.8,0.07762946]
[1727462552574,3.70639,2698.1,2697.7,1.5476254]
[1727462552575,8.234672,2698.1,2697.7,1.5476254]
[1727462552986,8.234662,2698.1,2697.9,0.07758166]
[1727462553067,4.528282,2698.1,2697.7,1.5476254]
[1727462553271,4.528282,2698.1,2698.0,0.07753386]
[1727462553499,4.528282,2698.1,2697.7,1.5476254]
[1727462553797,0.821902,2698.1,2697.7,1.5476254]
[1727462554006,0.821902,2698.1,2697.8,0.07762946]
[1727462554007,0.833,2697.9,2697.8,0.07762946]
[1727462554292,0.833,2697.9,2697.3,0.3699]
[1727462554506,3.70708,2697.6,2697.3,0.3699]
[1727462554668,3.70708,2697.6,2697.4,0.07452348]
[1727462555699,7.41419,2697.6,2697.4,0.07452348]
[1727462556392,3.70708,2697.6,2697.4,0.07452348]
[1727462556692,7.41421,2697.6,2697.4,0.07452348]
[1727462557051,3.70708,2697.6,2697.4,0.07452348]
[1727462558401,3.70713,2697.5,2697.4,0.07452348]
[1727462558555,3.70713,2697.5,2697.1,0.3699]
[1727462558751,3.70713,2697.5,2697.2,0.07477928]
[1727462560165,3.70701,2697.6,2697.2,0.07477928]
[1727462560506,3.70701,2697.6,2697.2,3.42541349]
[1727462563298,0.833,2697.9,2697.3,0.07414485]
[1727462563477,4.53969,2697.9,2697.4,3.70718]
[1727462563949,3.70669,2697.9,2697.4,7.20664562]
[1727462564145,3.70669,2697.9,2697.5,3.70713]
[1727462564412,4.09338577,2698.1,2697.6,3.79506699]
[1727462564413,3.70645,2698.0,2697.6,3.79506699]
[1727462565579,3.70648,2698.0,2697.6,3.79506699]
[1727462565769,4.09338577,2698.1,2697.6,3.79506699]
[1727462565770,0.38698577,2698.1,2697.6,3.79506699]
[1727462565994,4.09335577,2698.1,2697.6,7.50205699]
[1727462566418,0.38698577,2698.1,2697.7,3.70678]
[1727462566676,0.38698577,2698.1,2697.7,3.78129811]
[1727462567298,3.70616,2698.3,2698.0,3.35063421]
[1727462567499,3.70616,2698.3,2698.0,3.72053421]
[1727462567813,4.0939985,2698.2,2698.1,0.07426618]
[1727462568173,3.70617,2698.2,2698.1,0.07426618]
[1727462568378,3.70617,2698.2,2698.0,0.3699]
[1727462568595,3.7061,2698.3,2698.1,0.07426618]
[1727462568802,3.70617,2698.2,2698.1,0.07426618]
[1727462570975,3.70617,2698.2,2697.5,0.3699]
[1727462570976,3.70679,2697.8,2697.5,0.3699]
[1727462571918,3.70687,2697.7,2697.4,3.35063421]
[1727462572076,3.70679,2697.8,2697.4,3.35063421]
[1727462572277,3.70686,2697.7,2697.4,3.35063421]
[1727462572613,3.70663,2697.9,2697.4,3.35063421]
[1727462572829,3.70663,2697.9,2697.6,3.35063421]
[1727462573026,3.70618,2698.2,2697.8,3.35063421]
[1727462573347,3.70611,2698.3,2697.8,3.35063421]
[1727462573348,7.41228,2698.3,2697.8,7.05733421]
[1727462573514,3.70611,2698.3,2697.8,3.35063421]
[1727462573726,3.70611,2698.3,2697.8,8.17075763]
[1727462575363,7.41228,2698.3,2697.8,8.17075763]
[1727462575626,3.70611,2698.3,2697.8,8.17075763]
[1727462576752,4.51915,2698.5,2698.0,3.35063421]
[1727462576924,0.38782725,2698.7,2698.4,3.35063421]
[1727462577139,0.38782725,2698.7,2698.6,3.35063421]
[1727462577298,3.70537,2698.8,2698.6,3.35063421]
[1727462577830,7.41084,2698.8,2698.6,3.35063421]
[1727462578053,3.70548,2698.7,2698.6,3.35063421]
[1727462578229,3.70563,2698.6,2698.2,3.35063421]
[1727462578429,3.70576,2698.5,2698.2,3.35063421]
[1727462578604,3.70576,2698.5,2698.3,0.07093328]
[1727462578934,3.70576,2698.5,2698.2,3.35063421]
[1727462579241,3.70576,2698.5,2698.3,0.07093328]
[1727462579392,4.47831,2698.7,2698.4,3.35063421]
[1727462579603,3.70563,2698.6,2698.5,0.07083771]
[1727462579999,3.70612,2698.3,2698.0,3.35063421]
[1727462580397,3.70601,2698.4,2698.0,3.35063421]
[1727462580700,3.70612,2698.3,2698.0,3.35063421]
[1727462580904,3.70619,2698.2,2698.0,3.35063421]
[1727462581930,3.70619,2698.2,2697.8,3.35063421]
[1727462582431,3.70619,2698.2,2697.9,0.07112444]
[1727462582729,0.823871,2698.2,2697.9,0.07112444]
[1727462582932,3.70644,2698.0,2697.9,0.07112444]
[1727462583318,3.70661,2697.9,2697.5,3.35063421]
[1727462583592,4.159601,2698.1,2697.7,3.35063421]
[1727462583816,3.70631,2698.1,2697.9,3.35063421]
[1727462584250,4.53266,2698.3,2697.9,3.35063421]
[1727462584450,4.53266,2698.3,2697.8,3.35063421]
[1727462584670,0.8266,2698.3,2697.9,3.7065]
[1727462584871,3.70581,2698.5,2698.0,3.35063421]
[1727462585219,3.70581,2698.5,2698.0,7.05705421]
[1727462585420,3.70556,2698.7,2698.1,1.07560542]
[1727462585864,3.70556,2698.7,2698.1,4.78184542]
[1727462586167,3.70556,2698.7,2698.2,3.70614]
[1727462586321,3.70582,2698.5,2698.1,1.07560542]
[1727462586538,3.70582,2698.5,2698.1,0.3699]
[1727462586932,3.70573,2698.6,2698.2,3.35063421]
[1727462587132,3.70577,2698.5,2698.1,0.3699]
[1727462587485,7.41194,2698.4,2698.1,0.777537]
[1727462587627,3.70597,2698.4,2698.1,0.3699]
[1727462589021,3.7057,2698.6,2698.3,3.35063421]
[1727462589254,3.7057,2698.6,2698.3,0.37205342]
[1727462589438,3.7057,2698.6,2698.1,3.72053421]
[1727462589667,3.70535,2698.8,2698.3,3.35063421]
[1727462589825,3.70535,2698.8,2698.4,0.3699]
[1727462590038,3.70535,2698.8,2698.4,0.74195342]
[1727462590265,3.70555,2698.7,2698.4,0.74195342]
[1727462590427,3.70535,2698.8,2698.4,0.74195342]
[1727462590641,7.41081,2698.8,2698.4,0.74195342]
[1727462590968,3.70549,2698.7,2698.4,0.74195342]
[1727462591191,3.70562,2698.6,2698.4,0.74195342]
[1727462591461,3.7059,2698.4,2698.2,0.3699]
[1727462591870,7.41189,2698.4,2698.2,0.3699]
[1727462592298,7.41189,2698.4,2697.9,3.35063421]
[1727462592299,7.41193,2698.4,2698.0,0.3699]
[1727462592502,3.70605,2698.3,2698.0,0.70496342]
[1727462592722,3.70618,2698.2,2698.0,0.70496342]
[1727462593418,3.70618,2698.2,2698.0,0.3699]
[1727462594911,3.70618,2698.2,2697.7,3.35063421]
[1727462595120,3.70659,2697.9,2697.4,4.07707]
[1727462595331,3.70659,2697.9,2697.4,0.3699]
[1727462595530,7.4136,2697.8,2697.5,3.35063421]
[1727462595864,3.7068,2697.8,2697.5,3.35063421]
[1727462596169,4.52887,2698.3,2697.5,3.35063421]
[1727462596792,3.7067,2697.9,2697.5,3.35063421]
[1727462597538,3.7067,2697.9,2697.6,0.0690808]
[1727462601308,4.52887,2698.3,2697.6,0.0690808]
[1727462601309,3.70686,2697.7,2697.6,0.0690808]
[1727462601502,3.70686,2697.7,2697.4,0.3699]
[1727462601712,3.70686,2697.7,2697.6,0.06961541]
[1727462602007,3.70686,2697.7,2697.2,3.72053421]
[1727462602008,3.70715,2697.5,2697.2,3.72053421]
[1727462602242,3.70686,2697.7,2697.2,3.72053421]
[1727462602243,3.707,2697.6,2697.2,3.72053421]
[1727462602614,3.70686,2697.7,2697.2,3.72053421]
[1727462602803,3.70686,2697.7,2697.4,3.35063421]
[1727462603000,7.41381,2697.7,2697.4,3.35063421]
[1727462603225,3.70686,2697.7,2697.4,3.35063421]
[1727462603712,7.41381,2697.7,2697.4,3.35063421]
[1727462604538,3.70686,2697.7,2697.4,3.35063421]
[1727462604711,7.41382,2697.7,2697.4,3.35063421]
[1727462605701,3.70686,2697.7,2697.4,3.35063421]
[1727462606342,3.70669,2697.9,2697.6,3.35063421]
[1727462606661,3.70669,2697.9,2697.6,3.72053421]
[1727462607468,3.70666,2697.9,2697.6,0.3699]
[1727462607843,3.70679,2697.8,2697.6,0.3699]
[1727462608023,3.70679,2697.8,2697.4,3.35063421]
[1727462608024,3.70679,2697.8,2697.4,3.72053421]
[1727462609517,3.70701,2697.6,2697.2,3.35063421]
[1727462609717,3.70701,2697.6,2697.2,3.72053421]
[1727462611471,3.70701,2697.6,2697.2,7.42807421]
[1727462612469,3.70701,2697.6,2697.3,0.06991319]
[1727462612763,3.70727,2697.4,2697.3,0.06991319]
[1727462612931,3.70748,2697.3,2696.9,4.07785]
[1727462613771,4.52218,2697.4,2696.9,7.78566]
[1727462613933,4.52218,2697.4,2696.9,4.07778]
[1727462614122,4.52218,2697.4,2696.9,7.78565]
[1727462614735,3.70728,2697.4,2696.9,7.78565]
[1727462615002,3.70723,2697.5,2697.0,7.05838421]
[1727462615724,3.70723,2697.5,2697.1,0.07414558]
[1727462615940,7.41447,2697.5,2697.0,7.05838421]
[1727462616265,3.70723,2697.5,2697.0,7.05838421]
[1727462616484,3.70728,2697.4,2697.0,7.05838421]
[1727462617360,3.70728,2697.4,2697.0,3.70775]
[1727462618175,3.70749,2697.3,2696.9,0.3699]
[1727462618546,3.70749,2697.3,2696.9,4.07785]
[1727462619048,3.70749,2697.3,2696.9,0.3699]
[1727462619232,3.70749,2697.3,2696.9,4.07783]
[1727462619435,3.70749,2697.3,2696.9,0.3699]
[1727462620158,3.70749,2697.3,2696.9,4.07782]
[1727462621538,3.70749,2697.3,2696.9,0.3699]
[1727462621758,3.70749,2697.3,2696.9,4.07783]
[1727462622970,3.70749,2697.3,2696.9,0.3699]
[1727462622971,3.70757,2697.2,2696.9,0.3699]
[1727462623181,3.70749,2697.3,2696.9,0.3699]
[1727462623345,0.370749,2697.3,2696.5,6.70848]
[1727462623535,3.70839,2696.6,2696.2,4.07876]
[1727462624085,0.8171,2696.9,2696.2,4.07876]
[1727462624086,3.70829,2696.7,2696.2,4.07876]
[1727462624191,3.70829,2696.7,2696.2,7.78759]
[1727462624368,7.4164,2696.8,2696.3,3.70874]
[1727462624588,7.41639,2696.8,2696.3,3.70874]
[1727462624875,3.70824,2696.7,2696.3,3.70874]
[1727462625382,3.70824,2696.7,2696.2,0.3699]
[1727462625583,3.70824,2696.7,2696.2,4.0788]
[1727462627392,3.70824,2696.7,2696.3,3.70878]
[1727462627546,3.70824,2696.7,2696.3,3.77520918]
[1727462628163,3.70824,2696.7,2696.3,0.06642918]
[1727462628489,3.70824,2696.7,2696.2,4.07881]
[1727462628643,3.70824,2696.7,2696.4,0.06638132]
[1727462628847,3.70824,2696.7,2696.3,0.06642918]
[1727462629043,3.70824,2696.7,2696.5,0.06633347]
[1727462629247,3.70824,2696.7,2696.2,4.07881]
[1727462629569,3.70824,2696.7,2696.6,0.06628563]
[1727462629699,3.70824,2696.7,2696.2,4.07881]
[1727462629700,3.70824,2696.7,2696.2,7.42944421]
[1727462629848,3.70824,2696.7,2696.6,0.06628563]
[1727462630389,3.70824,2696.7,2696.2,7.42944421]
[1727462630555,3.70824,2696.7,2696.6,0.06628563]
[1727462631068,3.70824,2696.7,2696.2,7.42944421]
[1727462631287,3.70824,2696.7,2696.6,0.06628563]
[1727462631631,7.41655,2696.7,2696.2,7.42936421]
[1727462631751,3.70824,2696.7,2696.6,0.06628563]
[1727462631954,3.70824,2696.7,2696.2,7.42936421]
[1727462632146,3.70824,2696.7,2696.6,0.06628563]
[1727462632357,3.70824,2696.7,2696.3,3.70878]
[1727462632589,3.70824,2696.7,2696.6,0.06628563]
[1727462632754,3.70824,2696.7,2696.3,3.70878]
[1727462632987,3.7081,2696.8,2696.6,0.06628563]
[1727462633351,3.7081,2696.8,2696.3,3.70878]
[1727462633538,3.7081,2696.8,2696.3,4.82260642]
[1727462633788,3.7081,2696.8,2696.4,0.06638132]
[1727462635353,3.70824,2696.7,2696.4,0.06638132]
[1727462635545,7.41657,2696.7,2696.4,0.06638132]
[1727462635785,3.70824,2696.7,2696.4,0.06638132]
[1727462635994,3.7084,2696.6,2696.2,4.0788]
[1727462636150,3.7084,2696.6,2696.5,0.06659191]
[1727462636350,3.7084,2696.6,2696.2,4.0788]
[1727462636637,3.7084,2696.6,2696.5,0.06659191]
[1727462636878,7.41661,2696.7,2696.5,0.06659191]
[1727462637034,7.41661,2696.7,2696.2,4.0788]
[1727462637250,7.41661,2696.7,2696.3,0.06668761]
[1727462637407,3.70824,2696.7,2696.2,4.0788]
[1727462637604,3.70824,2696.7,2696.2,5.19266242]
[1727462637964,7.41656,2696.7,2696.3,0.06668761]
[1727462638154,3.70824,2696.7,2696.3,0.06668761]
[1727462638309,3.70824,2696.7,2696.2,8.54329663]
[1727462638509,3.70824,2696.7,2696.4,0.06663976]
[1727462638741,3.70824,2696.7,2696.3,0.06668761]
[1727462638956,3.70824,2696.7,2696.5,0.06659191]
[1727462639248,3.70824,2696.7,2696.6,0.06654406]
[1727462639648,3.70824,2696.7,2696.2,7.42943421]
[1727462639851,3.70824,2696.7,2696.3,0.06668761]
[1727462640090,3.70824,2696.7,2696.2,7.42936421]
[1727462640391,3.70824,2696.7,2696.3,0.06668761]
[1727462640747,3.70824,2696.7,2696.2,11.13820421]
[1727462641063,3.70824,2696.7,2696.3,0.06668761]
[1727462641343,3.70824,2696.7,2696.2,11.13820421]
[1727462641550,3.70824,2696.7,2696.4,0.06663976]
[1727462641850,3.70824,2696.7,2696.5,0.06659191]
[1727462642048,3.70824,2696.7,2696.2,12.25205963]
[1727462642350,3.70824,2696.7,2696.3,0.06668761]
[1727462642966,3.70824,2696.7,2696.2,12.25205963]
[1727462642967,3.70824,2696.7,2696.3,0.06668761]
[1727462643422,3.70824,2696.7,2696.2,12.25204963]
[1727462643424,3.70824,2696.7,2696.4,0.06663976]
[1727462643551,3.70824,2696.7,2696.3,0.06668761]
[1727462643851,3.70824,2696.7,2696.4,0.06663976]
[1727462644023,4.52516,2696.9,2696.4,0.06663976]
[1727462644215,4.52516,2696.9,2696.2,7.42938421]
[1727462644216,3.70825,2696.7,2696.2,3.72053421]
[1727462644557,3.70825,2696.7,2696.3,3.77545761]
[1727462644919,3.70825,2696.7,2696.3,4.89594879]
[1727462645221,3.70825,2696.7,2696.3,1.18717879]
[1727462645222,7.41656,2696.7,2696.3,1.18717879]
[1727462645415,3.70825,2696.7,2696.3,0.06668761]
[1727462645752,3.70825,2696.7,2696.2,7.42943421]
[1727462645937,3.70825,2696.7,2696.4,0.06663976]
[1727462646142,3.70825,2696.7,2696.3,0.06668761]
[1727462646521,3.70825,2696.7,2696.4,0.06663976]
[1727462646957,3.70825,2696.7,2696.3,3.70878]
[1727462647117,3.70811,2696.8,2696.5,0.06659191]
[1727462647317,3.70811,2696.8,2696.4,3.77525976]
[1727462647530,3.70811,2696.8,2696.6,0.06537737]
[1727462647755,3.70811,2696.8,2696.5,0.06655302]
[1727462648084,3.70811,2696.8,2696.6,0.06650517]
[1727462648605,3.70811,2696.8,2696.5,0.3699]
[1727462648859,3.70811,2696.8,2696.6,0.06656017]
[1727462654567,0.38810382,2697.0,2696.6,3.77493017]
[1727462654854,4.09594382,2697.0,2696.6,7.12556438]
[1727462655058,4.09594382,2697.0,2696.6,4.53760382]
[1727462655977,7.80383382,2697.0,2696.6,4.53760382]
[1727462656476,7.41575,2697.0,2696.6,4.53760382]
[1727462656830,3.70784,2697.0,2696.6,4.53760382]
[1727462657025,7.41577,2697.0,2696.6,4.53760382]
[1727462657808,3.70797,2696.9,2696.6,4.53760382]
[1727462658085,3.70797,2696.9,2696.6,0.06656017]
[1727462658550,3.70797,2696.9,2696.6,1.61376766]
[1727462658773,3.70784,2697.0,2696.6,1.61376766]
[1727462659067,3.70811,2696.8,2696.6,1.61376766]
[1727462659856,3.70811,2696.8,2696.6,0.06656017]
[1727462660553,3.70784,2697.0,2696.6,0.06656017]
[1727462660752,3.70802,2696.9,2696.6,1.61376766]
[1727462663490,3.70809,2696.8,2696.6,1.61376766]
[1727462663807,3.70809,2696.8,2696.6,0.06656017]
[1727462665560,3.70787,2697.0,2696.6,1.61376766]
[1727462665563,7.4158,2697.0,2696.6,1.61376766]
[1727462665868,3.70802,2696.9,2696.6,1.61376766]
[1727462667106,3.70776,2697.1,2696.9,0.3699]
[1727462667402,3.70749,2697.3,2697.0,1.54720749]
[1727462667607,3.70749,2697.3,2697.0,1.61367525]
[1727462668107,3.70759,2697.2,2697.0,1.61367525]
[1727462671781,3.70759,2697.2,2697.0,0.06646776]
[1727462673779,0.7575,2697.5,2697.0,5.89065178]
[1727462674001,3.70707,2697.6,2697.3,0.3699]
[1727462674291,3.70707,2697.6,2697.4,0.06596304]
[1727462674495,3.70707,2697.6,2697.4,1.61317053]
[1727462675224,7.41414,2697.6,2697.4,1.61317053]
[1727462675426,7.41414,2697.6,2697.4,0.06596304]
[1727462675427,3.70713,2697.5,2697.4,0.06596304]
[1727462675979,3.70713,2697.5,2697.1,0.3699]
[1727462676018,3.70752,2697.3,2697.1,0.3699]
[1727462676214,4.50682,2697.3,2697.0,1.54720749]
[1727462678334,4.50682,2697.3,2696.9,3.70793]
[1727462678538,8.21432,2697.3,2696.9,0.778581]
[1727462678729,3.7077,2697.1,2696.8,0.3699]
[1727462680199,4.5068,2697.3,2696.8,0.3699]
[1727462680464,8.21434,2697.3,2696.8,8.54651968]
[1727462680623,8.21434,2697.3,2696.8,8.47236556]
[1727462681647,3.70755,2697.2,2696.8,8.47236556]
[1727462682172,8.21429,2697.3,2696.8,8.47236556]
[1727462682760,0.7993,2697.3,2696.9,4.92926883]
[1727462682941,0.7993,2697.3,2696.9,4.85511656]
[1727462683518,3.70721,2697.5,2697.0,3.70781]
[1727462683784,4.49501,2697.5,2697.1,0.48550466]
[1727462687520,4.49501,2697.5,2697.2,0.0660092]
[1727462689680,4.49501,2697.5,2697.3,0.06586791]
[1727462690050,4.49501,2697.5,2697.0,7.41549]
[1727462690240,4.49501,2697.5,2697.4,0.06577612]
[1727462690669,4.49501,2697.5,2697.1,3.70762]
[1727462690869,4.49501,2697.5,2697.2,0.06587175]
[1727462691484,3.70701,2697.6,2697.2,0.43577175]
[1727462694489,4.52976,2697.7,2697.3,3.70736]
[1727462694653,3.70696,2697.7,2697.4,0.06571565]
[1727462695058,4.09464435,2697.8,2697.4,0.06571565]
[1727462695383,3.70687,2697.7,2697.4,0.06571565]
[1727462695583,7.41382,2697.7,2697.4,0.06571565]
[1727462695786,7.41383,2697.7,2697.2,4.07743]
[1727462695953,7.41383,2697.7,2697.5,0.06563485]
[1727462696154,7.41383,2697.7,2697.2,4.07743]
[1727462696370,3.70687,2697.7,2697.6,0.06558704]
[1727462696573,3.70687,2697.7,2697.2,4.07743]
[1727462696921,3.70687,2697.7,2697.2,5.19109214]
[1727462697089,3.70687,2697.7,2697.3,0.06573048]
[1727462697256,3.70687,2697.7,2697.2,8.89853214]
[1727462697457,3.70687,2697.7,2697.3,3.77313598]
[1727462697992,4.09462435,2697.8,2697.3,3.84727586]
[1727462698186,7.80146435,2697.8,2697.3,5.07883781]
[1727462698484,3.70687,2697.7,2697.3,5.00469793]
[1727462699399,3.70687,2697.7,2697.4,0.90820379]
[1727462699680,3.70687,2697.7,2697.5,0.06564035]
[1727462700051,3.70687,2697.7,2697.3,3.7074]
[1727462700253,3.70687,2697.7,2697.4,0.06568816]
[1727462700479,3.70701,2697.6,2697.3,1.54645817]
[1727462700725,3.70701,2697.6,2697.4,0.06551229]
[1727462700991,4.09471435,2697.8,2697.4,0.06551229]
[1727462701474,7.80153435,2697.8,2697.4,0.06551229]
[1727462701679,4.09471435,2697.8,2697.4,0.06551229]
[1727462702002,7.80152435,2697.8,2697.4,0.06551229]
[1727462702298,0.38790435,2697.8,2697.5,1.54645817]
[1727462702499,0.38790435,2697.8,2697.7,5.25331817]
[1727462703038,3.70605,2698.3,2697.7,5.31868703]
[1727462703205,3.70605,2698.3,2698.1,1.54645817]
[1727462703528,0.38787344,2698.5,2698.2,4.07598]
[1727462703794,3.70584,2698.5,2698.2,0.06507492]
[1727462703974,3.70584,2698.5,2698.0,1.54645817]
[1727462704174,3.70563,2698.6,2698.3,0.06476886]
[1727462704376,3.70563,2698.6,2698.2,1.54645817]
[1727462704595,4.47966,2698.7,2698.4,0.06472108]
[1727462705057,4.47966,2698.7,2698.4,1.54645817]
[1727462705202,0.7741,2698.7,2698.5,0.06466232]
[1727462705295,3.70521,2698.9,2698.5,0.06466232]
[1727462705462,3.70535,2698.8,2698.5,0.06466232]
[1727462707015,3.70551,2698.7,2698.6,0.06461454]
[1727462707457,3.70551,2698.7,2698.3,0.3699]
[1727462707653,3.70551,2698.7,2698.6,0.06234736]
[1727462707881,3.70551,2698.7,2698.3,0.3699]
[1727462708093,3.70551,2698.7,2698.6,0.06195989]
[1727462708505,3.70551,2698.7,2698.3,0.3699]
[1727462708798,3.70551,2698.7,2698.4,0.06205545]
[1727462709188,0.4940523,2698.7,2698.4,0.06205545]
[1727462709390,0.4940523,2698.7,2697.8,3.70666]
[1727462709391,3.70576,2698.5,2697.9,1.54645817]
[1727462709588,3.70598,2698.4,2697.9,1.54645817]
[1727462709925,3.70598,2698.4,2697.9,2.10875999]
[1727462710775,3.70612,2698.3,2697.9,1.54645817]
[1727462710972,3.70612,2698.3,2697.7,1.54645817]
[1727462710973,4.45978,2698.2,2697.7,1.54645817]
[1727462712067,3.70646,2698.0,2697.5,0.3699]
[1727462712517,3.70659,2697.9,2697.5,0.3699]
[1727462712678,3.70659,2697.9,2697.6,1.54645817]